Workbook

Sheet Summary
A1: Summary business case
A3: All figures in £'000 | C3: 2024-25 | D3: 2025-26 | E3: 2026-27 | F3: 2027-28 | G3: 2028-29 | H3: 2029-30
A5: Income
A7: OFS Teaching Income | C7: =+'Input - Income'!C39+'Input - Income'!C72 -> 0 | D7: =+'Input - Income'!D39+'Input - Income'!D72 -> 0 | E7: =+'Input - Income'!E39+'Input - Income'!E72 -> 0 | F7: =+'Input - Income'!F39+'Input - Income'!F72 -> 0 | G7: =+'Input - Income'!G39+'Input - Income'!G72 -> 0 | H7: =+'Input - Income'!H39+'Input - Income'!H72 -> 0
A8: Charity Support Funding | C8: 0 | D8: 0 | E8: =+SUM(B15:C15)/2*'General Assumptions'!B32 -> 0 | F8: =+SUM(C15:D15)/2*'General Assumptions'!C32 -> 0 | G8: =+SUM(D15:E15)/2*'General Assumptions'!C32 -> 0 | H8: =+SUM(E15:F15)/2*'General Assumptions'!D32 -> 0 | L8: Link
A9: RDP Funding | C9: =+'Input - Income'!C105 -> 0 | D9: =+'Input - Income'!D105 -> 0 | E9: =+'Input - Income'!E105 -> 0 | F9: =+'Input - Income'!F105 -> 0 | G9: =+'Input - Income'!G105 -> 0 | H9: =+'Input - Income'!H105 -> 0 | L9: Link
A10: UG Tuition fee income | C10: =+('Input - Income'!C11*'Input - Income'!C24)+'Input - Income'!C12*'Input - Income'!C36 -> 0 | D10: =+('Input - Income'!D11*'Input - Income'!D24)+'Input - Income'!D12*'Input - Income'!D36 -> 0 | E10: =+('Input - Income'!E11*'Input - Income'!E24)+'Input - Income'!E12*'Input - Income'!E36 -> 0 | F10: =+('Input - Income'!F11*'Input - Income'!F24)+'Input - Income'!F12*'Input - Income'!F36 -> 0 | G10: =+('Input - Income'!G11*'Input - Income'!G24)+'Input - Income'!G12*'Input - Income'!G36 -> 0 | H10: =+('Input - Income'!H11*'Input - Income'!H24)+'Input - Income'!H12*'Input - Income'!H36 -> 0
A11: PGT Tuition fee income | C11: =+('Input - Income'!C58*'Input - Income'!C45)+('Input - Income'!C46*'Input - Income'!C70) -> 0 | D11: =+('Input - Income'!D58*'Input - Income'!D45)+('Input - Income'!D46*'Input - Income'!D70) -> 0 | E11: =+('Input - Income'!E58*'Input - Income'!E45)+('Input - Income'!E46*'Input - Income'!E70) -> 0 | F11: =+('Input - Income'!F58*'Input - Income'!F45)+('Input - Income'!F46*'Input - Income'!F70) -> 0 | G11: =+('Input - Income'!G58*'Input - Income'!G45)+('Input - Income'!G46*'Input - Income'!G70) -> 0 | H11: =+('Input - Income'!H58*'Input - Income'!H45)+('Input - Income'!H46*'Input - Income'!H70) -> 0
A12: PGR Tuition fee income | C12: =+('Input - Income'!C78*'Input - Income'!C91)+('Input - Income'!C79*'Input - Income'!C103) -> 0 | D12: =+('Input - Income'!D78*'Input - Income'!D91)+('Input - Income'!D79*'Input - Income'!D103) -> 0 | E12: =+('Input - Income'!E78*'Input - Income'!E91)+('Input - Income'!E79*'Input - Income'!E103) -> 0 | F12: =+('Input - Income'!F78*'Input - Income'!F91)+('Input - Income'!F79*'Input - Income'!F103) -> 0 | G12: =+('Input - Income'!G78*'Input - Income'!G91)+('Input - Income'!G79*'Input - Income'!G103) -> 0 | H12: =+('Input - Income'!H78*'Input - Income'!H91)+('Input - Income'!H79*'Input - Income'!H103) -> 0
A13: Waived fees | C13: =-'Input - Income'!C110 -> 0 | D13: =-'Input - Income'!D110 -> 0 | E13: =-'Input - Income'!E110 -> 0 | F13: =-'Input - Income'!F110 -> 0 | G13: =-'Input - Income'!G110 -> 0 | H13: =-'Input - Income'!H110 -> 0
A14: International VAT education | C14: ='Input - Income'!C115 -> 0 | D14: ='Input - Income'!D115 -> 0 | E14: ='Input - Income'!E115 -> 0 | F14: ='Input - Income'!F115 -> 0 | G14: ='Input - Income'!G115 -> 0 | H14: ='Input - Income'!H115 -> 0
A15: Research Income - Charity | C15: =+'Input - Income'!C120 -> 0 | D15: =+'Input - Income'!D120 -> 0 | E15: =+'Input - Income'!E120 -> 0 | F15: =+'Input - Income'!F120 -> 0 | G15: =+'Input - Income'!G120 -> 0 | H15: =+'Input - Income'!H120 -> 0 | L15: Link
A16: Research Income - Other | C16: =+'Input - Income'!C121 -> 0 | D16: =+'Input - Income'!D121 -> 0 | E16: =+'Input - Income'!E121 -> 0 | F16: =+'Input - Income'!F121 -> 0 | G16: =+'Input - Income'!G121 -> 0 | H16: =+'Input - Income'!H121 -> 0 | L16: Link
A17: Research Overheads | C17: =+'Input - Income'!C121*('Input - Income'!$C$119) -> 0 | D17: =+'Input - Income'!D121*('Input - Income'!$C$119) -> 0 | E17: =+'Input - Income'!E121*('Input - Income'!$C$119) -> 0 | F17: =+'Input - Income'!F121*('Input - Income'!$C$119) -> 0 | G17: =+'Input - Income'!G121*('Input - Income'!$C$119) -> 0 | H17: =+'Input - Income'!H121*('Input - Income'!$C$119) -> 0 | L17: Formula
A18: NHS Recharges | C18: =+'Input - Income'!C126 -> 0 | D18: =+'Input - Income'!D126 -> 0 | E18: =+'Input - Income'!E126 -> 0 | F18: =+'Input - Income'!F126 -> 0 | G18: =+'Input - Income'!G126 -> 0 | H18: =+'Input - Income'!H126 -> 0
A19: CPD income | C19: =+'Input - Income'!C125 -> 0 | D19: =+'Input - Income'!D125 -> 0 | E19: =+'Input - Income'!E125 -> 0 | F19: =+'Input - Income'!F125 -> 0 | G19: =+'Input - Income'!G125 -> 0 | H19: =+'Input - Income'!H125 -> 0 | L19: Link
A20: Other income | C20: =+'Input - Income'!C127 -> 0 | D20: =+'Input - Income'!D127 -> 0 | E20: =+'Input - Income'!E127 -> 0 | F20: =+'Input - Income'!F127 -> 0 | G20: =+'Input - Income'!G127 -> 0 | H20: =+'Input - Income'!H127 -> 0 | L20: Link
A22: Total Income | C22: =SUM(C6:C21) -> 0 | D22: =SUM(D6:D21) -> 0 | E22: 0 | F22: 0 | G22: 0 | H22: 0
A24: Expenditure
A26: Payroll
A27: QMUL Pay | C27: =+'Input - Expenditure'!C33 -> 0 | D27: =+'Input - Expenditure'!D33 -> 0 | E27: =+'Input - Expenditure'!E33 -> 0 | F27: =+'Input - Expenditure'!F33 -> 0 | G27: =+'Input - Expenditure'!G33 -> 0 | H27: =+'Input - Expenditure'!H33 -> 0 | L27: Link
A28: Research Pay | C28: =+('Input - Income'!C120+'Input - Income'!C121)*'General Assumptions'!B36 -> 0 | D28: =+('Input - Income'!D120+'Input - Income'!D121)*'General Assumptions'!C36 -> 0 | E28: =+('Input - Income'!E120+'Input - Income'!E121)*'General Assumptions'!D36 -> 0 | F28: =+('Input - Income'!F120+'Input - Income'!F121)*'General Assumptions'!E36 -> 0 | G28: =+('Input - Income'!G120+'Input - Income'!G121)*'General Assumptions'!F36 -> 0 | H28: =+('Input - Income'!H120+'Input - Income'!H121)*'General Assumptions'!G36 -> 0 | L28: Link
A29: NHS Recharges | C29: =+C18 -> 0 | D29: 0 | E29: 0 | F29: 0 | G29: 0 | H29: 0 | L29: Link
A30: Total payroll | C30: =SUM(C27:C29) -> 0 | D30: 0 | E30: 0 | F30: 0 | G30: 0 | H30: 0
A32: Non Pay
A33: QMUL Non Pay | C33: =+'Input - Expenditure'!C44 -> 0 | D33: =+'Input - Expenditure'!D44 -> 0 | E33: =+'Input - Expenditure'!E44 -> 0 | F33: =+'Input - Expenditure'!F44 -> 0 | G33: =+'Input - Expenditure'!G44 -> 0 | H33: =+'Input - Expenditure'!H44 -> 0 | L33: formula
A34: Bursaries | C34: =+('Input - Income'!C11*'Input - Income'!C24)*'General Assumptions'!B41 -> 0 | D34: =+('Input - Income'!D11*'Input - Income'!D24)*'General Assumptions'!C41 -> 0 | E34: =+('Input - Income'!E11*'Input - Income'!E24)*'General Assumptions'!D41 -> 0 | F34: =+('Input - Income'!F11*'Input - Income'!F24)*'General Assumptions'!E41 -> 0 | G34: =+('Input - Income'!G11*'Input - Income'!G24)*'General Assumptions'!E41 -> 0 | H34: =+('Input - Income'!H11*'Input - Income'!H24)*'General Assumptions'!F41 -> 0
A35: Overseas Agents Fees | C35: =+((('Input - Income'!C12*'Input - Income'!C27)*'General Assumptions'!B13)+(('Input - Income'!C46*'Input - Income'!C61)*'General Assumptions'!B14))*'General Assumptions'!B15 -> 0 | D35: =+((('Input - Income'!D12*'Input - Income'!D27)*'General Assumptions'!C13)+(('Input - Income'!D46*'Input - Income'!D61)*'General Assumptions'!C14))*'General Assumptions'!C15 -> 0 | E35: =+((('Input - Income'!E12*'Input - Income'!E27)*'General Assumptions'!D13)+(('Input - Income'!E46*'Input - Income'!E61)*'General Assumptions'!D14))*'General Assumptions'!D15 -> 0 | F35: =+((('Input - Income'!F12*'Input - Income'!F27)*'General Assumptions'!E13)+(('Input - Income'!F46*'Input - Income'!F61)*'General Assumptions'!E14))*'General Assumptions'!E15 -> 0 | G35: =+((('Input - Income'!G12*'Input - Income'!G27)*'General Assumptions'!F13)+(('Input - Income'!G46*'Input - Income'!G61)*'General Assumptions'!F14))*'General Assumptions'!F15 -> 0 | H35: =+((('Input - Income'!H12*'Input - Income'!H27)*'General Assumptions'!G13)+(('Input - Income'!H46*'Input - Income'!H61)*'General Assumptions'!G14))*'General Assumptions'!G15 -> 0
A36: Research non pay | C36: =+('Input - Income'!C120+'Input - Income'!C121)*'General Assumptions'!B37 -> 0 | D36: =+('Input - Income'!D120+'Input - Income'!D121)*'General Assumptions'!C37 -> 0 | E36: =+('Input - Income'!E120+'Input - Income'!E121)*'General Assumptions'!D37 -> 0 | F36: =+('Input - Income'!F120+'Input - Income'!F121)*'General Assumptions'!E37 -> 0 | G36: =+('Input - Income'!G120+'Input - Income'!G121)*'General Assumptions'!E37 -> 0 | H36: =+('Input - Income'!H120+'Input - Income'!H121)*'General Assumptions'!F37 -> 0
A37: Total non pay | C37: =SUM(C32:C36) -> 0 | D37: 0 | E37: 0 | F37: 0 | G37: 0 | H37: 0
A39: Total savings & strategic funding | C39: =-'Input - Expenditure'!C61 -> 0 | D39: =-'Input - Expenditure'!D61 -> 0 | E39: =-'Input - Expenditure'!E61 -> 0 | F39: =-'Input - Expenditure'!F61 -> 0 | G39: =-'Input - Expenditure'!G61 -> 0 | H39: =-'Input - Expenditure'!H61 -> 0
A41: Total expenditure | C41: =+C37+C30+C39 -> 0 | D41: 0 | E41: 0 | F41: 0 | G41: 0 | H41: 0
A43: TOTAL cash generation | C43: =+C22-C41 -> 0 | D43: 0 | E43: 0 | F43: 0 | G43: 0 | H43: 0
A45: Capital Expenditure | C45: =+'Input - Expenditure'!C52 -> 0 | D45: =+'Input - Expenditure'!D52 -> 0 | E45: =+'Input - Expenditure'!E52 -> 0 | F45: =+'Input - Expenditure'!F52 -> 0 | G45: =+'Input - Expenditure'!G52 -> 0 | H45: =+'Input - Expenditure'!H52 -> 0
A47: Cashflow | C47: =+C43-C45 -> 0 | D47: 0 | E47: 0 | F47: 0 | G47: 0 | H47: 0
A49: Discount factor @ 4% | C49: 1 | D49: =+C49*0.96 -> 0.96 | E49: 0.9216 | F49: 0.884736 | G49: 0.84934656 | H49: 0.8153726976
A51: Present value | C51: =+C47*C49 -> 0 | D51: 0 | E51: 0 | F51: 0 | G51: 0 | H51: 0
A53: Net Present Value | C53: =+SUM(C51:H51) -> 0
A55: Cost of existing staff resources used - For information
A57: All figures in £'000 | C57: 2020-21 | D57: 2021-22 | E57: 2022-23 | F57: 2023-24 | G57: 2024-25 | H57: 2025-26
A59: Cost of existing QMUL staff resources | C59: =-'Input - Expenditure'!C91 -> 0 | D59: =-'Input - Expenditure'!D91 -> 0 | E59: =-'Input - Expenditure'!E91 -> 0 | F59: =-'Input - Expenditure'!F91 -> 0 | G59: =-'Input - Expenditure'!G91 -> 0 | H59: =-'Input - Expenditure'!H91 -> 0
A61: QMUL potential loss of income - For information
A63: All figures in £'000 | C63: 2020-21 | D63: 2021-22 | E63: 2022-23 | F63: 2023-24 | G63: 2024-25 | H63: 2025-26
A65: Studetnt FTE (1)
A66: Potential reduction in FTE - UG | C66: =-'Input - Income'!C148-'Input - Income'!C160 -> 0 | D66: =-'Input - Income'!D148-'Input - Income'!D160 -> 0 | E66: =-'Input - Income'!E148-'Input - Income'!E160 -> 0 | F66: =-'Input - Income'!F148-'Input - Income'!F160 -> 0 | G66: =-'Input - Income'!G148-'Input - Income'!G160 -> 0 | H66: =-'Input - Income'!H148-'Input - Income'!H160 -> 0
A67: Potential reduction in FTE - PGT | C67: =-'Input - Income'!C181-'Input - Income'!C193 -> 0 | D67: =-'Input - Income'!D181-'Input - Income'!D193 -> 0 | E67: =-'Input - Income'!E181-'Input - Income'!E193 -> 0 | F67: =-'Input - Income'!F181-'Input - Income'!F193 -> 0 | G67: =-'Input - Income'!G181-'Input - Income'!G193 -> 0 | H67: =-'Input - Income'!H181-'Input - Income'!H193 -> 0
A68: Potential reduction in FTE | C68: =SUM(C66:C67) -> 0 | D68: 0 | E68: 0 | F68: 0 | G68: 0 | H68: 0
A70: Income (2)
A71: Potential reduction in income - UG | C71: =-('Input - Income'!C148*'Input - Income'!C11)-('Input - Income'!C160*'Input - Income'!C12) -> 0 | D71: =-('Input - Income'!D148*'Input - Income'!D11)-('Input - Income'!D160*'Input - Income'!D12) -> 0 | E71: =-('Input - Income'!E148*'Input - Income'!E11)-('Input - Income'!E160*'Input - Income'!E12) -> 0 | F71: =-('Input - Income'!F148*'Input - Income'!F11)-('Input - Income'!F160*'Input - Income'!F12) -> 0 | G71: =-('Input - Income'!G148*'Input - Income'!G11)-('Input - Income'!G160*'Input - Income'!G12) -> 0 | H71: =-('Input - Income'!H148*'Input - Income'!H11)-('Input - Income'!H160*'Input - Income'!H12) -> 0
A72: Potential reduction in income - PGT | C72: =-('Input - Income'!C45*'Input - Income'!C181)-('Input - Income'!C46*'Input - Income'!C193) -> 0 | D72: =-('Input - Income'!D45*'Input - Income'!D181)-('Input - Income'!D46*'Input - Income'!D193) -> 0 | E72: =-('Input - Income'!E45*'Input - Income'!E181)-('Input - Income'!E46*'Input - Income'!E193) -> 0 | F72: =-('Input - Income'!F45*'Input - Income'!F181)-('Input - Income'!F46*'Input - Income'!F193) -> 0 | G72: =-('Input - Income'!G45*'Input - Income'!G181)-('Input - Income'!G46*'Input - Income'!G193) -> 0 | H72: =-('Input - Income'!H45*'Input - Income'!H181)-('Input - Income'!H46*'Input - Income'!H193) -> 0
A73: Potential reduction in income - HEFCE Teaching | C73: =-'Input - Income'!C162-'Input - Income'!C195 -> 0 | D73: =-'Input - Income'!D162-'Input - Income'!D195 -> 0 | E73: =-'Input - Income'!E162-'Input - Income'!E195 -> 0 | F73: =-'Input - Income'!F162-'Input - Income'!F195 -> 0 | G73: =-'Input - Income'!G162-'Input - Income'!G195 -> 0 | H73: =-'Input - Income'!H162-'Input - Income'!H195 -> 0
A74: Total Potential income reduction | C74: =SUM(C71:C73) -> 0 | D74: 0 | E74: 0 | F74: 0 | G74: 0 | H74: 0
A76: QMUL potential loss of income | C76: =SUM(C71:C74) -> 0 | D76: 0 | E76: 0 | F76: 0 | G76: 0 | H76: 0
A78: Discount factor @ 4% | C78: 1 | D78: =+C78*0.96 -> 0.96 | E78: =+D78*0.96 -> 0.9216 | F78: =+E78*0.96 -> 0.884736 | G78: =+E78*0.96 -> 0.884736 | H78: =+F78*0.96 -> 0.84934656
A80: Present value | C80: =+C76*C78 -> 0 | D80: 0 | E80: 0 | F80: 0 | G80: 0 | H80: 0
A82: Net Present Value | C82: =SUM(C80:H80) -> 0
A84: (1) Potential FTE reduction of new applicants on existing programmes
A85: (2) Potential income reduction of new applicants on existing programmes

Sheet Input - Income
A1: Income Inputs
A3: Key
A4: Input
A5: Optional override
A7: UG student numbers | C7: 2024-25 | D7: 2025-26 | E7: 2026-27 | F7: 2027-28 | G7: 2028-29 | H7: 2029-30 | I7: Notes | L7: A | M7: B | N7: C1.1 | O7: C1.2 | P7: C2 | Q7: D
A9: Programme length (Year) | C9: 3
A10: HEFCE price group | C10: C2
A11: Home fee per student | C11: 9250 | D11: =+C11 -> 9250 | E11: =+D11 -> 9250 | F11: =+E11 -> 9250 | G11: =+E11 -> 9250 | H11: =+F11 -> 9250
A12: Overseas fee per student | C12: 28350 | D12: =+C12*(1+'General Assumptions'!$B6) -> 29767.5 | E12: =+D12*(1+'General Assumptions'!$B6) -> 31255.875 | F12: =+E12*(1+'General Assumptions'!$B6) -> 32818.66875 | G12: =+F12*(1+'General Assumptions'!$B6) -> 34459.60219 | H12: =+G12*(1+'General Assumptions'!$B6) -> 36182.5823
A14: Home student numbers
A15: Intake target
A16: Year 1 | C16: =+IF(C9>=1,C15,0) -> 0 | D16: =+IF(C9>=2,C15*'General Assumptions'!C7,0) -> 0 | E16: =+IF(C9>=3,D16*'General Assumptions'!D8,0) -> 0 | F16: =+IF(C9>=4,C15,0) -> 0 | G16: =+IF(C9>=5,C15,0) -> 0 | H16: 0
A17: Year 2 | D17: =+IF(C9>=1,D15,0) -> 0 | E17: =+IF(C9>=2,D15*'General Assumptions'!D7,0) -> 0 | F17: =+IF(C9>=3,E17*'General Assumptions'!E8,0) -> 0 | G17: =+IF(C9>=4,D15,0) -> 0 | H17: =+IF(C9>=5,D15,0) -> 0
A18: Year 3 | E18: =+IF(C9>=1,E15,0) -> 0 | F18: =+IF(C9>=2,E15*'General Assumptions'!E7,0) -> 0 | G18: =+IF(C9>=3,F18*'General Assumptions'!F8,0) -> 0 | H18: =+IF(C9>=4,E15,0) -> 0
A19: Year 4 | F19: =+IF(C9>=1,F15,0) -> 0 | G19: =+IF(C9>=2,F15*'General Assumptions'!F7,0) -> 0 | H19: =+IF(C9>=3,G19*'General Assumptions'!G8,0) -> 0
A20: Year 5 | G20: =+IF(C9>=1,G15,0) -> 0 | H20: =+IF(C9>=2,G15*'General Assumptions'!G7,0) -> 0
A21: Year 6 | H21: =+IF(C9>=1,H15,0) -> 0
A22: Year 7
A23: Year 8
A24: Student population | C24: =SUM(C16:C23) -> 0 | D24: =SUM(D16:D23) -> 0 | E24: 0 | F24: 0 | G24: 0 | H24: 0
A26: Overseas student numbers
A27: Intake target
A28: Year 1 | C28: =+IF(C9>=1,C27,0) -> 0 | D28: =+IF(C9>=2,C27*'General Assumptions'!C7,0) -> 0 | E28: =+IF(C9>=3,D28*'General Assumptions'!D8,0) -> 0 | F28: =+IF(C9>=4,C27,0) -> 0 | G28: =+IF(C9>=5,C27,0) -> 0 | H28: 0
A29: Year 2 | D29: =+IF(C9>=1,D27,0) -> 0 | E29: =+IF(C9>=2,D27*'General Assumptions'!D7,0) -> 0 | F29: =+IF(C9>=3,E29*'General Assumptions'!E8,0) -> 0 | G29: =+IF(C9>=4,D27,0) -> 0 | H29: =+IF(C9>=5,D27,0) -> 0
A30: Year 3 | E30: =+IF(C9>=1,E27,0) -> 0 | F30: =+IF(C9>=2,E27*'General Assumptions'!E7,0) -> 0 | G30: =+IF(C9>=3,F30*'General Assumptions'!F8,0) -> 0 | H30: =+IF(C9>=4,E27,0) -> 0
A31: Year 4 | F31: =+IF(C9>=1,F27,0) -> 0 | G31: =+IF(C9>=2,F27*'General Assumptions'!F7,0) -> 0 | H31: =+IF(C9>=3,G31*'General Assumptions'!G8,0) -> 0
A32: Year 5 | G32: =+IF(C9>=1,G27,0) -> 0 | H32: =+IF(C9>=2,G27*'General Assumptions'!G7,0) -> 0
A33: Year 6 | H33: =+IF(C9>=1,H27,0) -> 0
A34: Year 7
A35: Year 8
A36: Student population | C36: =SUM(C28:C35) -> 0 | D36: 0 | E36: 0 | F36: 0 | G36: 0 | H36: 0 | N36: continuation rates
A38: TOTAL UG student population | C38: =C24+C36 -> 0 | D38: 0 | E38: 0 | F38: 0 | G38: 0 | H38: 0
A39: HEFCE T income | C39: 0 | D39: =IF($C10="A",C24*'General Assumptions'!B19,IF($C10="B",'Input - Income'!C24*'General Assumptions'!B20,IF($C$10="C1.1",C24*'General Assumptions'!B21,IF($C$10="C1.2",C24*'General Assumptions'!B22,IF('Input - Income'!$C$10="C2",'Input - Income'!C24*'General Assumptions'!B29,IF('Input - Income'!$C$10="D",'Input - Income'!C24*'General Assumptions'!B30,0)))))) -> 0 | E39: =IF($C10="A",D24*'General Assumptions'!C19,IF($C10="B",'Input - Income'!D24*'General Assumptions'!C20,IF($C$10="C1.1",D24*'General Assumptions'!C21,IF($C$10="C1.2",D24*'General Assumptions'!C22,IF('Input - Income'!$C$10="C2",'Input - Income'!D24*'General Assumptions'!C29,IF('Input - Income'!$C$10="D",'Input - Income'!D24*'General Assumptions'!C30,0)))))) -> 0 | F39: =IF($C10="A",E24*'General Assumptions'!D19,IF($C10="B",'Input - Income'!E24*'General Assumptions'!D20,IF($C$10="C1.1",E24*'General Assumptions'!D21,IF($C$10="C1.2",E24*'General Assumptions'!D22,IF('Input - Income'!$C$10="C2",'Input - Income'!E24*'General Assumptions'!D29,IF('Input - Income'!$C$10="D",'Input - Income'!E24*'General Assumptions'!D30,0)))))) -> 0 | G39: =IF($C10="A",F24*'General Assumptions'!E19,IF($C10="B",'Input - Income'!F24*'General Assumptions'!E20,IF($C$10="C1.1",F24*'General Assumptions'!E21,IF($C$10="C1.2",F24*'General Assumptions'!E22,IF('Input - Income'!$C$10="C2",'Input - Income'!F24*'General Assumptions'!E29,IF('Input - Income'!$C$10="D",'Input - Income'!F24*'General Assumptions'!E30,0)))))) -> 0 | H39: =IF($C10="A",G24*'General Assumptions'!F19,IF($C10="B",'Input - Income'!G24*'General Assumptions'!F20,IF($C$10="C1.1",G24*'General Assumptions'!F21,IF($C$10="C1.2",G24*'General Assumptions'!F22,IF('Input - Income'!$C$10="C2",'Input - Income'!G24*'General Assumptions'!F29,IF('Input - Income'!$C$10="D",'Input - Income'!G24*'General Assumptions'!F30,0)))))) -> 0
A41: PGT student numbers | C41: 2024-25 | D41: 2025-26 | E41: 2026-27 | F41: 2027-28 | G41: 2028-29 | H41: 2029-30 | I41: Notes
A43: Programme length (Year)
A44: HEFCE price group
A45: Home fee per student | D45: =+C45*(1+'General Assumptions'!B5) -> 0 | E45: =+D45*(1+'General Assumptions'!C5) -> 0 | F45: =+E45*(1+'General Assumptions'!D5) -> 0 | G45: =+F45*(1+'General Assumptions'!E5) -> 0 | H45: =+G45*(1+'General Assumptions'!F5) -> 0
A46: Overseas fee per student | D46: =+C46*(1+'General Assumptions'!B6) -> 0 | E46: =+D46*(1+'General Assumptions'!C6) -> 0 | F46: =+E46*(1+'General Assumptions'!D6) -> 0 | G46: =+F46*(1+'General Assumptions'!E6) -> 0 | H46: =+G46*(1+'General Assumptions'!F6) -> 0
A48: Home student numbers
A49: Intake target | C49: 0 | D49: =+C49 -> 0 | E49: =+D49 -> 0 | F49: =+E49 -> 0 | G49: =+E49 -> 0 | H49: =+F49 -> 0
A50: Year 1 | C50: =+IF(C43>=1,C49,0) -> 0 | D50: =+IF(C43>=2,C49,0) -> 0 | E50: =+IF(C43>=3,C49,0) -> 0 | F50: =+IF(C43>=4,C49,0) -> 0 | G50: =+IF(C43>=5,C49,0) -> 0 | H50: 0
A51: Year 2 | D51: =+IF(C43>=1,D49,0) -> 0 | E51: =+IF(C43>=2,D49,0) -> 0 | F51: =+IF(C43>=3,D49,0) -> 0 | G51: =+IF(C43>=4,D49,0) -> 0 | H51: =+IF(C43>=5,D49,0) -> 0
A52: Year 3 | E52: =+IF(C43>=1,E49,0) -> 0 | F52: =+IF(C43>=2,E49,0) -> 0 | G52: =+IF(C43>=3,E49,0) -> 0 | H52: =+IF(C43>=4,E49,0) -> 0
A53: Year 4 | F53: =+IF(C43>=1,F49,0) -> 0 | G53: =+IF(C43>=2,F49,0) -> 0 | H53: =+IF(C43>=3,F49,0) -> 0
A54: Year 5 | G54: =+IF(C43>=1,G49,0) -> 0 | H54: =+IF(C43>=2,G49,0) -> 0
A55: Year 6 | H55: =+IF(C43>=1,H49,0) -> 0
A56: Year 7
A57: Year 8
A58: Student population | C58: =SUM(C50:C57) -> 0 | D58: 0 | E58: 0 | F58: 0 | G58: 0 | H58: 0
A60: Overseas student numbers
A61: Intake target | C61: 0 | D61: =+C61 -> 0 | E61: =+D61 -> 0 | F61: =+E61 -> 0 | G61: =+E61 -> 0 | H61: =+F61 -> 0
A62: Year 1 | C62: =+IF(C43>=1,C61,0) -> 0 | D62: =+IF(C43>=2,C61,0) -> 0 | E62: =+IF(C43>=3,C61,0) -> 0 | F62: =+IF(C43>=4,C61,0) -> 0 | G62: =+IF(C43>=5,C61,0) -> 0 | H62: 0
A63: Year 2 | D63: =+IF(C43>=1,D61,0) -> 0 | E63: =+IF(C43>=2,D61,0) -> 0 | F63: =+IF(C43>=3,D61,0) -> 0 | G63: =+IF(C43>=4,D61,0) -> 0 | H63: =+IF(C43>=5,D61,0) -> 0
A64: Year 3 | E64: =+IF(C43>=1,E61,0) -> 0 | F64: =+IF(C43>=2,E61,0) -> 0 | G64: =+IF(C43>=3,E61,0) -> 0 | H64: =+IF(C43>=4,E61,0) -> 0
A65: Year 4 | F65: =+IF(C43>=1,F61,0) -> 0 | G65: =+IF(C43>=2,F61,0) -> 0 | H65: =+IF(C43>=3,F61,0) -> 0
A66: Year 5 | G66: =+IF(C43>=1,G61,0) -> 0 | H66: =+IF(C43>=2,G61,0) -> 0
A67: Year 6 | H67: =+IF(C43>=1,H61,0) -> 0
A68: Year 7
A69: Year 8
A70: Student population | C70: =SUM(C62:C69) -> 0 | D70: 0 | E70: 0 | F70: 0 | G70: 0 | H70: 0 | N70: continuation rates
A72: HEFCE Teaching Income | C72: 0 | D72: =IF($C44="A",C58*'General Assumptions'!B25,IF($C44="B",'Input - Income'!C58*'General Assumptions'!B26,IF($C$44="C1.1",C58*'General Assumptions'!B27,IF('Input - Income'!$C$44="C1.2",'Input - Income'!C58*'General Assumptions'!B28,IF('Input - Income'!$C$44="C2",'Input - Income'!C58*'General Assumptions'!B29,IF('Input - Income'!$C$44="D",'Input - Income'!C58*'General Assumptions'!B30,0)))))) -> 0 | E72: =IF($C44="A",D58*'General Assumptions'!C25,IF($C44="B",'Input - Income'!D58*'General Assumptions'!C26,IF($C$44="C1.1",D58*'General Assumptions'!C27,IF('Input - Income'!$C$44="C1.2",'Input - Income'!D58*'General Assumptions'!C28,IF('Input - Income'!$C$44="C2",'Input - Income'!D58*'General Assumptions'!C29,IF('Input - Income'!$C$44="D",'Input - Income'!D58*'General Assumptions'!C30,0)))))) -> 0 | F72: =IF($C44="A",E58*'General Assumptions'!D25,IF($C44="B",'Input - Income'!E58*'General Assumptions'!D26,IF($C$44="C1.1",E58*'General Assumptions'!D27,IF('Input - Income'!$C$44="C1.2",'Input - Income'!E58*'General Assumptions'!D28,IF('Input - Income'!$C$44="C2",'Input - Income'!E58*'General Assumptions'!D29,IF('Input - Income'!$C$44="D",'Input - Income'!E58*'General Assumptions'!D30,0)))))) -> 0 | G72: =IF($C44="A",F58*'General Assumptions'!E25,IF($C44="B",'Input - Income'!F58*'General Assumptions'!E26,IF($C$44="C1.1",F58*'General Assumptions'!E27,IF('Input - Income'!$C$44="C1.2",'Input - Income'!F58*'General Assumptions'!E28,IF('Input - Income'!$C$44="C2",'Input - Income'!F58*'General Assumptions'!E29,IF('Input - Income'!$C$44="D",'Input - Income'!F58*'General Assumptions'!E30,0)))))) -> 0 | H72: =IF($C44="A",G58*'General Assumptions'!F25,IF($C44="B",'Input - Income'!G58*'General Assumptions'!F26,IF($C$44="C1.1",G58*'General Assumptions'!F27,IF('Input - Income'!$C$44="C1.2",'Input - Income'!G58*'General Assumptions'!F28,IF('Input - Income'!$C$44="C2",'Input - Income'!G58*'General Assumptions'!F29,IF('Input - Income'!$C$44="D",'Input - Income'!G58*'General Assumptions'!F30,0)))))) -> 0
A75: PGR student numbers (QMUL) | C75: 2024-25 | D75: 2025-26 | E75: 2026-27 | F75: 2027-28 | G75: 2028-29 | H75: 2029-30 | I75: Notes
A77: Programme length (Year)
A78: Home fee per student | D78: =+C78*(1+'General Assumptions'!$B5) -> 0 | E78: =+D78*(1+'General Assumptions'!$B5) -> 0 | F78: =+E78*(1+'General Assumptions'!$B5) -> 0 | G78: =+F78*(1+'General Assumptions'!$B5) -> 0 | H78: =+G78*(1+'General Assumptions'!$B5) -> 0
A79: Overseas fee per student | D79: =+C79*(1+'General Assumptions'!$B6) -> 0 | E79: =+D79*(1+'General Assumptions'!$B6) -> 0 | F79: =+E79*(1+'General Assumptions'!$B6) -> 0 | G79: =+F79*(1+'General Assumptions'!$B6) -> 0 | H79: =+G79*(1+'General Assumptions'!$B6) -> 0
A81: Home student numbers
A82: Intake target | C82: 0 | D82: =+C82 -> 0 | E82: =+D82 -> 0 | F82: =+E82 -> 0 | G82: =+E82 -> 0 | H82: =+F82 -> 0
A83: Year 1 | C83: =+IF(C77>=1,C82,0) -> 0 | D83: =+IF(C77>=2,C82,0) -> 0 | E83: =+IF(C77>=3,C82,0) -> 0 | F83: =+IF(C77>=4,C82,0) -> 0 | G83: =+IF(C77>=5,C82,0) -> 0 | H83: 0
A84: Year 2 | D84: =+IF(C77>=1,D82,0) -> 0 | E84: =+IF(C77>=2,D82,0) -> 0 | F84: =+IF(C77>=3,D82,0) -> 0 | G84: =+IF(C77>=4,D82,0) -> 0 | H84: =+IF(C77>=5,D82,0) -> 0
A85: Year 3 | E85: =+IF(C77>=1,E82,0) -> 0 | F85: =+IF(C77>=2,E82,0) -> 0 | G85: =+IF(C77>=3,E82,0) -> 0 | H85: =+IF(C77>=4,E82,0) -> 0
A86: Year 4 | F86: =+IF(C77>=1,F82,0) -> 0 | G86: =+IF(C77>=2,F82,0) -> 0 | H86: =+IF(C77>=3,F82,0) -> 0
A87: Year 5 | G87: =+IF(C77>=1,G82,0) -> 0 | H87: =+IF(C77>=2,G82,0) -> 0
A88: Year 6 | H88: =+IF(C77>=1,H82,0) -> 0
A89: Year 7
A90: Year 8
A91: Student population | C91: =SUM(C83:C90) -> 0 | D91: 0 | E91: 0 | F91: 0 | G91: 0 | H91: 0
A93: Overseas student numbers
A94: Intake target | C94: 0 | D94: =+C94 -> 0 | E94: =+D94 -> 0 | F94: =+E94 -> 0 | G94: =+E94 -> 0 | H94: =+F94 -> 0
A95: Year 1 | C95: =+IF(C77>=1,C94,0) -> 0 | D95: =+IF(C77>=2,C94,0) -> 0 | E95: =+IF(C77>=3,C94,0) -> 0 | F95: =+IF(C77>=4,C94,0) -> 0 | G95: =+IF(C77>=5,C94,0) -> 0 | H95: 0
A96: Year 2 | D96: =+IF(C77>=1,D94,0) -> 0 | E96: =+IF(C77>=2,D94,0) -> 0 | F96: =+IF(C77>=3,D94,0) -> 0 | G96: =+IF(C77>=4,D94,0) -> 0 | H96: =+IF(C77>=5,D94,0) -> 0
A97: Year 3 | E97: =+IF(C77>=1,E94,0) -> 0 | F97: =+IF(C77>=2,E94,0) -> 0 | G97: =+IF(C77>=3,E94,0) -> 0 | H97: =+IF(C77>=4,E94,0) -> 0
A98: Year 4 | F98: =+IF(C77>=1,F94,0) -> 0 | G98: =+IF(C77>=2,F94,0) -> 0 | H98: =+IF(C77>=3,F94,0) -> 0
A99: Year 5 | G99: =+IF(C77>=1,G94,0) -> 0 | H99: =+IF(C77>=2,G94,0) -> 0
A100: Year 6 | H100: =+IF(C77>=1,H94,0) -> 0
A101: Year 7
A102: Year 8
A103: Student population | C103: =SUM(C95:C102) -> 0 | D103: 0 | E103: 0 | F103: 0 | G103: 0 | H103: 0 | N103: continuation rates
A105: HEFCE RDP funding | C105: 0 | D105: =+C91*'General Assumptions'!B31 -> 0 | E105: =+D91*'General Assumptions'!C31 -> 0 | F105: =+E91*'General Assumptions'!D31 -> 0 | G105: =+E91*'General Assumptions'!D31 -> 0 | H105: =+F91*'General Assumptions'!E31 -> 0
A108: Waived fees | C108: 2024-25 | D108: 2025-26 | E108: 2026-27 | F108: 2027-28 | G108: 2028-29 | H108: 2029-30 | I108: Notes
A110: Waived fees amount - £ | C110: =(C61*0.1)*C46 -> 0 | D110: =+C110 -> 0 | E110: =+D110 -> 0 | F110: =+E110 -> 0 | G110: =+E110 -> 0 | H110: =+F110 -> 0
A112: VAT/Tax | C112: 2024-25 | D112: 2025-26 | E112: 2026-27 | F112: 2027-28 | G112: 2028-29 | H112: 2029-30 | I112: Notes
C114: 0
A115: International VAT on education | C115: =((C12*C36)+(C46*C70)+(C79*C103))*$C$114 -> 0 | D115: =((D12*D36)+(D46*D70)+(D79*D103))*$C$114 -> 0 | E115: 0 | F115: 0 | G115: 0 | H115: 0
A117: Research income | C117: 2024-25 | D117: 2025-26 | E117: 2026-27 | F117: 2027-28 | G117: 2028-29 | H117: 2029-30 | I117: Notes
A119: Overhead recovery %
A120: Research Income - Charity | C120: 0 | D120: =+C120 -> 0 | E120: 0 | F120: 0 | G120: =+E120 -> 0 | H120: 0
A121: Research Income - Other | C121: 0 | D121: 0 | E121: 0 | F121: 0 | G121: 0 | H121: 0
A123: Other Income | C123: 2024-25 | D123: 2025-26 | E123: 2026-27 | F123: 2027-28 | G123: 2028-29 | H123: 2029-30 | I123: Notes
A125: CPD | C125: 0 | D125: =+C125*(1+'General Assumptions'!C9) -> 0 | E125: =+D125*(1+'General Assumptions'!D9) -> 0 | F125: =+E125*(1+'General Assumptions'!E9) -> 0 | G125: =+F125*(1+'General Assumptions'!F9) -> 0 | H125: =+G125*(1+'General Assumptions'!G9) -> 0
A126: NHS Recharges | C126: 0 | D126: =+C126*(1+'General Assumptions'!C10) -> 0 | E126: =+D126*(1+'General Assumptions'!D10) -> 0 | F126: =+E126*(1+'General Assumptions'!E10) -> 0 | G126: =+F126*(1+'General Assumptions'!F10) -> 0 | H126: =+G126*(1+'General Assumptions'!G10) -> 0
A127: Other Income | C127: 0 | D127: =+C127*(1+'General Assumptions'!C9) -> 0 | E127: =+D127*(1+'General Assumptions'!D9) -> 0 | F127: =+E127*(1+'General Assumptions'!E9) -> 0 | G127: =+F127*(1+'General Assumptions'!F9) -> 0 | H127: =+G127*(1+'General Assumptions'!G9) -> 0
A129: Potential loss of students from existing programmes - For information only *
A131: UG student numbers | C131: 2022-23 | D131: 2023-24 | E131: 2024-25 | F131: 2025-26 | G131: 2026-27 | H131: 2027-28 | I131: Notes
A133: Programme length | C133: =+C9 -> 3
A134: HEFCE price group | C134: B
A135: Home fee | C135: =+C11 -> 9250 | D135: 9250 | E135: 9250 | F135: 9250 | G135: 9250 | H135: 9250
A136: Overseas fee | C136: 28350 | D136: 29767.5 | E136: 31255.875 | F136: 32818.66875 | G136: 34459.60219 | H136: 36182.5823
A138: Home student numbers
A139: Intake target | C139: 0 | D139: =+C139 -> 0 | E139: =+D139 -> 0 | F139: =+E139 -> 0 | G139: =+E139 -> 0 | H139: =+F139 -> 0
A140: Year 1 | C140: =+IF(C133>=1,C139,0) -> 0 | D140: =+IF(C133>=2,C139,0) -> 0 | E140: =+IF(C133>=3,C139,0) -> 0 | F140: =+IF(C133>=4,C139,0) -> 0 | G140: =+IF(C133>=5,C139,0) -> 0 | H140: 0
A141: Year 2 | D141: =+IF(C133>=1,D139,0) -> 0 | E141: =+IF(C133>=2,D139,0) -> 0 | F141: =+IF(C133>=3,D139,0) -> 0 | G141: =+IF(C133>=4,D139,0) -> 0 | H141: =+IF(C133>=5,D139,0) -> 0
A142: Year 3 | E142: =+IF(C133>=1,E139,0) -> 0 | F142: =+IF(C133>=2,E139,0) -> 0 | G142: =+IF(C133>=3,E139,0) -> 0 | H142: =+IF(C133>=4,E139,0) -> 0
A143: Year 4 | F143: =+IF(C133>=1,F139,0) -> 0 | G143: =+IF(C133>=2,F139,0) -> 0 | H143: =+IF(C133>=3,F139,0) -> 0
A144: Year 5 | G144: =+IF(C133>=1,G139,0) -> 0 | H144: =+IF(C133>=2,G139,0) -> 0
A145: Year 6 | H145: =+IF(C133>=1,H139,0) -> 0
A146: Year 7
A147: Year 8
A148: Student population | C148: =SUM(C140:C147) -> 0 | D148: 0 | E148: 0 | F148: 0 | G148: 0 | H148: 0
A150: Overseas student numbers
A151: Intake target | C151: 0 | D151: =+C151 -> 0 | E151: =+D151 -> 0 | F151: =+E151 -> 0 | G151: =+E151 -> 0 | H151: =+F151 -> 0
A152: Year 1 | C152: =+IF(C133>=1,C151,0) -> 0 | D152: =+IF(C133>=2,C151,0) -> 0 | E152: =+IF(C133>=3,C151,0) -> 0 | F152: =+IF(C133>=4,C151,0) -> 0 | G152: =+IF(C133>=5,C151,0) -> 0 | H152: 0
A153: Year 2 | D153: =+IF(C133>=1,D151,0) -> 0 | E153: =+IF(C133>=2,D151,0) -> 0 | F153: =+IF(C133>=3,D151,0) -> 0 | G153: =+IF(C133>=4,D151,0) -> 0 | H153: =+IF(C133>=5,D151,0) -> 0
A154: Year 3 | E154: =+IF(C133>=1,E151,0) -> 0 | F154: =+IF(C133>=2,E151,0) -> 0 | G154: =+IF(C133>=3,E151,0) -> 0 | H154: =+IF(C133>=4,E151,0) -> 0
A155: Year 4 | F155: =+IF(C133>=1,F151,0) -> 0 | G155: =+IF(C133>=2,F151,0) -> 0 | H155: =+IF(C133>=3,F151,0) -> 0
A156: Year 5 | G156: =+IF(C133>=1,G151,0) -> 0 | H156: =+IF(C133>=2,G151,0) -> 0
A157: Year 6 | H157: =+IF(C133>=1,H151,0) -> 0
A158: Year 7
A159: Year 8
A160: Student population | C160: =SUM(C152:C159) -> 0 | D160: 0 | E160: 0 | F160: 0 | G160: 0 | H160: 0 | N160: continuation rates
A162: HEFCE RDP funding | C162: 0 | D162: =+C148*'General Assumptions'!B83 -> 0 | E162: =+D148*'General Assumptions'!C83 -> 0 | F162: =+E148*'General Assumptions'!D83 -> 0 | G162: =+E148*'General Assumptions'!D83 -> 0 | H162: =+F148*'General Assumptions'!E83 -> 0
A166: Programme length | C166: =+C43 -> 0
A167: HEFCE price group | C167: =+C44 -> 0
A168: Home fee | C168: =+C45 -> 0 | D168: =+D45 -> 0 | E168: 0 | F168: 0 | G168: 0 | H168: 0
A169: Overseas fee | C169: =+C46 -> 0 | D169: 0 | E169: 0 | F169: 0 | G169: 0 | H169: 0
A171: Home student numbers
A172: Intake target | C172: 0 | D172: =+C172 -> 0 | E172: =+D172 -> 0 | F172: =+E172 -> 0 | G172: =+E172 -> 0 | H172: =+F172 -> 0
A173: Year 1 | C173: =+IF(C166>=1,C172,0) -> 0 | D173: =+IF(C166>=2,C172,0) -> 0 | E173: =+IF(C166>=3,C172,0) -> 0 | F173: =+IF(C166>=4,C172,0) -> 0 | G173: =+IF(C166>=5,C172,0) -> 0 | H173: 0
A174: Year 2 | D174: =+IF(C166>=1,D172,0) -> 0 | E174: =+IF(C166>=2,D172,0) -> 0 | F174: =+IF(C166>=3,D172,0) -> 0 | G174: =+IF(C166>=4,D172,0) -> 0 | H174: =+IF(C166>=5,D172,0) -> 0
A175: Year 3 | E175: =+IF(C166>=1,E172,0) -> 0 | F175: =+IF(C166>=2,E172,0) -> 0 | G175: =+IF(C166>=3,E172,0) -> 0 | H175: =+IF(C166>=4,E172,0) -> 0
A176: Year 4 | F176: =+IF(C166>=1,F172,0) -> 0 | G176: =+IF(C166>=2,F172,0) -> 0 | H176: =+IF(C166>=3,F172,0) -> 0
A177: Year 5 | G177: =+IF(C166>=1,G172,0) -> 0 | H177: =+IF(C166>=2,G172,0) -> 0
A178: Year 6 | H178: =+IF(C166>=1,H172,0) -> 0
A179: Year 7
A180: Year 8
A181: Student population | C181: =SUM(C173:C180) -> 0 | D181: 0 | E181: 0 | F181: 0 | G181: 0 | H181: 0
A183: Overseas student numbers
A184: Intake target | C184: 0 | D184: =+C184 -> 0 | E184: =+D184 -> 0 | F184: =+E184 -> 0 | G184: =+E184 -> 0 | H184: =+F184 -> 0
A185: Year 1 | C185: =+IF(C166>=1,C184,0) -> 0 | D185: =+IF(C166>=2,C184,0) -> 0 | E185: =+IF(C166>=3,C184,0) -> 0 | F185: =+IF(C166>=4,C184,0) -> 0 | G185: =+IF(C166>=5,C184,0) -> 0 | H185: 0
A186: Year 2 | D186: =+IF(C166>=1,D184,0) -> 0 | E186: =+IF(C166>=2,D184,0) -> 0 | F186: =+IF(C166>=3,D184,0) -> 0 | G186: =+IF(C166>=4,D184,0) -> 0 | H186: =+IF(C166>=5,D184,0) -> 0
A187: Year 3 | E187: =+IF(C166>=1,E184,0) -> 0 | F187: =+IF(C166>=2,E184,0) -> 0 | G187: =+IF(C166>=3,E184,0) -> 0 | H187: =+IF(C166>=4,E184,0) -> 0
A188: Year 4 | F188: =+IF(C166>=1,F184,0) -> 0 | G188: =+IF(C166>=2,F184,0) -> 0 | H188: =+IF(C166>=3,F184,0) -> 0
A189: Year 5 | G189: =+IF(C166>=1,G184,0) -> 0 | H189: =+IF(C166>=2,G184,0) -> 0
A190: Year 6 | H190: =+IF(C166>=1,H184,0) -> 0
A191: Year 7
A192: Year 8
A193: Student population | C193: =SUM(C185:C192) -> 0 | D193: 0 | E193: 0 | F193: 0 | G193: 0 | H193: 0 | N193: continuation rates
A195: HEFCE RDP funding | C195: 0 | D195: =+C181*'General Assumptions'!B116 -> 0 | E195: =+D181*'General Assumptions'!C116 -> 0 | F195: =+E181*'General Assumptions'!D116 -> 0 | G195: =+E181*'General Assumptions'!D116 -> 0 | H195: =+F181*'General Assumptions'!E116 -> 0
A198: * Include risk of cannibalisation of existing applicants to QM Programmes to this new programme i.e. Student would have enrolled at QMUL on an existing programme

Sheet Input - Expenditure
A1: Expenditure Inputs
A3: Key | L3: 1.33 | N3: Professional | S3: 1.33 | U3: Lecturers | AA3: 1.33 | AC3: Professors
A4: Input
A5: Optional override | L5: Point | M5: Base salary 2019 | N5: Salary including on costs | S5: Point | T5: Base salary 2019 | U5: Salary including on costs | AA5: Point | AB5: Base salary 2019 | AC5: Salary including on costs
AA6: Select Spinal Point
A7: QMUL FTE and Pay | C7: 2024-25 | D7: 2025-26 | E7: 2026-27 | F7: 2027-28 | G7: 2028-29 | H7: 2029-30 | I7: Notes | L7: 53 | M7: 77240 | N7: =+M7*$L$3 -> 102729.2 | AA7: Off £159k | AB7: =+AB8+3000 -> 159000 | AC7: =+AB7*$L$3 -> 211470
L8: 52 | M8: 75116 | N8: 99904.28 | AA8: Off £156k | AB8: 156000 | AC8: =+AB8*$L$3 -> 207480
A9: QMUL FTE | L9: 51 | M9: 73057 | N9: =+M9*$L$3 -> 97165.81 | AA9: Off £153k | AB9: 153000 | AC9: =+AB9*$L$3 -> 203490
A10: Clinical Professor | C10: 0 | D10: =+C10 -> 0 | E10: 0 | F10: 0 | G10: 0 | H10: 0 | L10: 50 | M10: 71057 | N10: 94505.81 | AA10: Off £150k | AB10: 150000 | AC10: =+AB10*$L$3 -> 199500
A11: Clinical Reader/Senior Lecturer | C11: 0 | D11: 0 | E11: 0 | F11: 0 | G11: 0 | H11: 0 | L11: 49 | M11: 69114 | N11: 91921.62 | S11: Select Spinal Point | AA11: Off £147k | AB11: 147000 | AC11: =+AB11*$L$3 -> 195510
A12: Clinical Lecturer | C12: 0 | D12: 0 | E12: 0 | F12: 0 | G12: 0 | H12: 0 | L12: 48 | M12: 67228 | N12: 89413.24 | S12: Off £99k | T12: 99000 | U12: =+T12*$L$3 -> 131670 | AA12: Off £144k | AB12: 144000 | AC12: =+AB12*$L$3 -> 191520
A13: Non-clinical professor | C13: 0 | D13: =+C13 -> 0 | E13: 0 | F13: 0 | G13: 0 | H13: 0 | L13: 47 | M13: 65398 | N13: 86979.34 | S13: Off £96k | T13: 96000 | U13: 127680 | AA13: Off £141k | AB13: 141000 | AC13: 187530
A14: Reader / senior lecturer | C14: 0 | D14: =+C14 -> 0 | E14: =+D14 -> 0 | F14: =+E14 -> 0 | G14: =+F14 -> 0 | H14: =+G14 -> 0 | L14: 46 | M14: 63622 | N14: 84617.26 | S14: Off £93k | T14: 93000 | U14: 123690 | AA14: Off £138k | AB14: 138000 | AC14: 183540
A15: Lecturer | C15: 0 | D15: 0 | E15: 0 | F15: 0 | G15: 0 | H15: 0 | L15: 45 | M15: 61896 | N15: 82321.68 | S15: Off £90k | T15: =+T14-3000 -> 90000 | U15: 119700 | AA15: Off £135k | AB15: 135000 | AC15: 179550
A16: Academic & professional admin | C16: 0 | D16: 0 | E16: 0 | F16: 0 | G16: 0 | H16: 0 | L16: 44 | M16: 60221 | N16: 80093.93 | S16: Off £87k | T16: =+T15-3000 -> 87000 | U16: 115710 | AA16: Off £132k | AB16: 132000 | AC16: 175560
A17: Teaching assistants | C17: 0 | D17: 0 | E17: 0 | F17: 0 | G17: 0 | H17: 0 | L17: 43 | M17: 58595 | N17: 77931.35 | S17: Off £84k | T17: 84000 | U17: 111720 | AA17: Off £129k | AB17: 129000 | AC17: 171570
A18: Other (include role in notes) | C18: 0 | D18: 0 | E18: 0 | F18: 0 | G18: 0 | H18: 0 | L18: 42 | M18: 57015 | N18: 75829.95 | S18: Off £81k | T18: 81000 | U18: 107730 | AA18: Off £126k | AB18: 126000 | AC18: 167580
L19: 41 | M19: 55483 | N19: 73792.39 | S19: Off £78k | T19: 78000 | U19: 103740 | AA19: Off £123k | AB19: 123000 | AC19: 163590
A20: Total QMUL FTE | C20: =SUM(C9:C19) -> 0 | D20: 0 | E20: 0 | F20: 0 | G20: 0 | H20: 0 | L20: 40 | M20: 53994 | N20: 71812.02 | S20: Off £75k | T20: 75000 | U20: 99750 | AA20: Off £120k | AB20: 120000 | AC20: 159600
L21: 39 | M21: 52549 | N21: 69890.17 | S21: Off £72k | T21: 72000 | U21: 95760 | AA21: Off £117k | AB21: 117000 | AC21: 155610
A22: QMUL Pay | B22: Grade | L22: 38 | M22: 51174 | N22: 68061.42 | O22: New QMUL Pay | P22: Exist QMUL Pay | S22: 53 | T22: 77240 | U22: 102729.2 | V22: New QMUL Pay | W22: Exist QMUL Pay | AA22: Off £114k | AB22: 114000 | AC22: 151620 | AD22: New QMUL Pay | AE22: Exist QMUL Pay
A23: Clinical Professor | B23: Select Spinal Point | C23: =+C10*$AD23 -> 0 | D23: =+D10*$AD23*'General Assumptions'!C11 -> 0 | E23: =+E10*$AD23*'General Assumptions'!D11 -> 0 | F23: =+F10*$AD23*'General Assumptions'!E11 -> 0 | G23: =+G10*$AD23*'General Assumptions'!F11 -> 0 | H23: =+H10*$AD23*'General Assumptions'!G11 -> 0 | L23: 37 | M23: 49785 | N23: 66214.05 | O23: =IF(ISNA(VLOOKUP(B23,$L$6:$N$61,3,FALSE)),0,VLOOKUP(B23,$L$6:$N$61,3,FALSE)) -> 0 | P23: =IF(ISNA(VLOOKUP(B81,$L$6:$N$61,3,FALSE)),0,VLOOKUP(B81,$L$6:$N$61,3,FALSE)) -> 0 | S23: 52 | T23: 75116 | U23: 99904.28 | V23: =IF(ISNA(VLOOKUP(B23,$S$10:$U$69,3,FALSE)),0,VLOOKUP(B23,$S$10:$U$69,3,FALSE)) -> 0 | W23: =IF(ISNA(VLOOKUP(B81,$S$10:$U$69,3,FALSE)),0,VLOOKUP(B81,$S$10:$U$69,3,FALSE)) -> 0 | AA23: Off £111k | AB23: 111000 | AC23: 147630 | AD23: =IF(ISNA(VLOOKUP(B23,$AA$5:$AC$64,3,FALSE)),0,VLOOKUP(B23,$AA$5:$AC$64,3,FALSE)) -> 0 | AE23: =IF(ISNA(VLOOKUP(B81,$AA$5:$AC$64,3,FALSE)),0,VLOOKUP(B81,$AA$5:$AC$64,3,FALSE)) -> 0
A24: Clinical Reader/Senior Lecturer | B24: Select Spinal Point | C24: =+C11*$V24 -> 0 | D24: =+D11*$V24*'General Assumptions'!C11 -> 0 | E24: =+E11*$V24*'General Assumptions'!D11 -> 0 | F24: =+F11*$V24*'General Assumptions'!E11 -> 0 | G24: =+G11*$V24*'General Assumptions'!F11 -> 0 | H24: =+H11*$V24*'General Assumptions'!G11 -> 0 | L24: 36 | M24: 48463 | N24: 64455.79 | O24: 0 | P24: 0 | S24: 51 | T24: 73057 | U24: =+T24*$L$3 -> 97165.81 | V24: 0 | W24: 0 | AA24: Off £108k | AB24: 108000 | AC24: =+AB24*$L$3 -> 143640 | AD24: 0 | AE24: 0
A25: Clinical Lecturer | B25: Select Spinal Point | C25: =+C12*$V25 -> 0 | D25: =+D12*$V25*'General Assumptions'!C11 -> 0 | E25: =+E12*$V25*'General Assumptions'!D11 -> 0 | F25: =+F12*$V25*'General Assumptions'!E11 -> 0 | G25: =+G12*$V25*'General Assumptions'!F11 -> 0 | H25: =+H12*$V25*'General Assumptions'!G11 -> 0 | L25: 35 | M25: 47178 | N25: 62746.74 | O25: 0 | P25: 0 | S25: 50 | T25: 71057 | U25: =+T25*$L$3 -> 94505.81 | V25: 0 | W25: 0 | AA25: Off £105k | AB25: 105000 | AC25: =+AB25*$L$3 -> 139650 | AD25: 0 | AE25: 0
A26: Non-clinical professor | B26: Select Spinal Point | C26: =+C13*$AD26 -> 0 | D26: =+D13*$AD26*'General Assumptions'!C11 -> 0 | E26: =+E13*$AD26*'General Assumptions'!D11 -> 0 | F26: =+F13*$AD26*'General Assumptions'!E11 -> 0 | G26: =+G13*$AD26*'General Assumptions'!F11 -> 0 | H26: =+H13*$AD26*'General Assumptions'!G11 -> 0 | L26: 34 | M26: 45932 | N26: 61089.56 | O26: 0 | P26: 0 | S26: 49 | T26: 69114 | U26: 91921.62 | V26: 0 | W26: 0 | AA26: Off £102k | AB26: =+AB27+3000 -> 102000 | AC26: =+AB26*$L$3 -> 135660 | AD26: 0 | AE26: 0
A27: Reader / senior lecturer | B27: Select Spinal Point | C27: =+C14*$V27 -> 0 | D27: =+D14*$V27*'General Assumptions'!C11 -> 0 | E27: =+E14*$V27*'General Assumptions'!D11 -> 0 | F27: =+F14*$V27*'General Assumptions'!E11 -> 0 | G27: =+G14*$V27*'General Assumptions'!F11 -> 0 | H27: =+H14*$V27*'General Assumptions'!G11 -> 0 | L27: 33 | M27: 44722 | N27: 59480.26 | O27: 0 | P27: 0 | S27: 48 | T27: 67228 | U27: 89413.24 | V27: 0 | W27: 0 | AA27: Off £99k | AB27: 99000 | AC27: =+AB27*$L$3 -> 131670 | AD27: 0 | AE27: 0
A28: Lecturer | B28: Select Spinal Point | C28: =+C15*$V28 -> 0 | D28: =+D15*$V28*'General Assumptions'!C11 -> 0 | E28: =+E15*$V28*'General Assumptions'!D11 -> 0 | F28: =+F15*$V28*'General Assumptions'!E11 -> 0 | G28: =+G15*$V28*'General Assumptions'!F11 -> 0 | H28: =+H15*$V28*'General Assumptions'!G11 -> 0 | L28: 32 | M28: 43548 | N28: 57918.84 | O28: 0 | P28: 0 | S28: 47 | T28: 65398 | U28: 86979.34 | V28: 0 | W28: 0 | AA28: Off £96k | AB28: 96000 | AC28: 127680 | AD28: 0 | AE28: 0
A29: Academic & professional admin | B29: Select Spinal Point | C29: =+C16*$O29 -> 0 | D29: =+D16*$O29*'General Assumptions'!C11 -> 0 | E29: =+E16*$O29*'General Assumptions'!D11 -> 0 | F29: =+F16*$O29*'General Assumptions'!E11 -> 0 | G29: =+G16*$O29*'General Assumptions'!F11 -> 0 | H29: =+H16*$O29*'General Assumptions'!G11 -> 0 | L29: 31 | M29: 42405 | N29: 56398.65 | O29: 0 | P29: 0 | S29: 46 | T29: 63622 | U29: 84617.26 | V29: 0 | W29: 0 | AA29: Off £93k | AB29: 93000 | AC29: 123690 | AD29: 0 | AE29: 0
A30: Teaching assistants | B30: Select Spinal Point | C30: =+C17*$O30 -> 0 | D30: =+D17*$O30*'General Assumptions'!C11 -> 0 | E30: =+E17*$O30*'General Assumptions'!D11 -> 0 | F30: =+F17*$O30*'General Assumptions'!E11 -> 0 | G30: =+G17*$O30*'General Assumptions'!F11 -> 0 | H30: =+H17*$O30*'General Assumptions'!G11 -> 0 | L30: 30 | M30: 41300 | N30: 54929 | O30: 0 | P30: 0 | S30: 45 | T30: 61896 | U30: 82321.68 | V30: 0 | W30: 0 | AA30: Off £90k | AB30: =+AB29-3000 -> 90000 | AC30: 119700 | AD30: 0 | AE30: 0
A31: Other | B31: Select Spinal Point | C31: =+C18*$O31 -> 0 | D31: =+D18*$O31*'General Assumptions'!C11 -> 0 | E31: =+E18*$O31*'General Assumptions'!D11 -> 0 | F31: =+F18*$O31*'General Assumptions'!E11 -> 0 | G31: =+G18*$O31*'General Assumptions'!F11 -> 0 | H31: =+H18*$O31*'General Assumptions'!G11 -> 0 | L31: 29 | M31: 40223 | N31: 53496.59 | O31: 0 | P31: 0 | S31: 44 | T31: 60221 | U31: 80093.93 | V31: 0 | W31: 0 | AA31: Off £87k | AB31: =+AB30-3000 -> 87000 | AC31: 115710 | AD31: 0 | AE31: 0
L32: 28 | M32: 39180 | N32: 52109.4 | S32: 43 | T32: 58595 | U32: 77931.35 | AA32: Off £84k | AB32: 84000 | AC32: 111720
A33: Total QMUL Pay | C33: =SUM(C23:C32) -> 0 | D33: 0 | E33: 0 | F33: 0 | G33: 0 | H33: 0 | L33: 27 | M33: 38165 | N33: 50759.45 | S33: 42 | T33: 57015 | U33: 75829.95 | AA33: Off £81k | AB33: 81000 | AC33: 107730
L34: 26 | M34: 37182 | N34: 49452.06 | S34: 41 | T34: 55483 | U34: 73792.39 | AA34: Off £78k | AB34: 78000 | AC34: 103740
A35: QMUL Non Pay Expenditure | C35: 2024-25 | D35: 2025-26 | E35: 2026-27 | F35: 2027-28 | G35: 2028-29 | H35: 2029-30 | I35: Notes | L35: 25 | M35: 36572 | N35: 48640.76 | S35: 40 | T35: 53994 | U35: 71812.02 | AA35: Off £75k | AB35: 75000 | AC35: 99750
L36: 24 | M36: 35636 | N36: 47395.88 | S36: 39 | T36: 52549 | U36: 69890.17 | AA36: Off £72k | AB36: 72000 | AC36: 95760
A37: Start-up costs | C37: 0 | D37: 0 | E37: 0 | F37: 0 | G37: 0 | H37: 0 | L37: 23 | M37: 34728 | N37: =+M37*$L$3 -> 46188.24 | S37: 38 | T37: 51174 | U37: 68061.42 | AA37: 53 | AB37: 77240 | AC37: 102729.2
A38: Consumables PhD students | C38: 0 | D38: =C38*(1+'General Assumptions'!C12) -> 0 | E38: =D38*(1+'General Assumptions'!D12) -> 0 | F38: =E38*(1+'General Assumptions'!E12) -> 0 | G38: =F38*(1+'General Assumptions'!F12) -> 0 | H38: =G38*(1+'General Assumptions'!G12) -> 0 | L38: 22 | M38: 33845 | N38: 45013.85 | S38: 37 | T38: 49785 | U38: 66214.05 | AA38: 52 | AB38: 75116 | AC38: 99904.28
A39: PGR QMUL Funded Stipends | C39: =+$B39*('Input - Income'!C103+'Input - Income'!C91) -> 0 | D39: =+$B39*('Input - Income'!D103+'Input - Income'!D91)*(1+'General Assumptions'!$B$12) -> 0 | E39: =+$B39*('Input - Income'!E103+'Input - Income'!E91)*((1+'General Assumptions'!$B$12)^2) -> 0 | F39: =+$B39*('Input - Income'!F103+'Input - Income'!F91)*((1+'General Assumptions'!$B$12)^3) -> 0 | G39: =+$B39*('Input - Income'!G103+'Input - Income'!G91)*((1+'General Assumptions'!$B$12)^4) -> 0 | H39: =+$B39*('Input - Income'!H103+'Input - Income'!H91)*((1+'General Assumptions'!$B$12)^5) -> 0 | L39: 21 | M39: 32999 | N39: 43888.67 | S39: 36 | T39: 48463 | U39: 64455.79 | AA39: 51 | AB39: 73057 | AC39: =+AB39*$L$3 -> 97165.81
A40: Equipment | C40: 0 | D40: 0 | E40: 0 | F40: 0 | G40: 0 | H40: 0 | L40: 20 | M40: 32220 | N40: 42852.6 | S40: 35 | T40: 47178 | U40: 62746.74 | AA40: 50 | AB40: 71057 | AC40: =+AB40*$L$3 -> 94505.81
A41: Marketing
A42: Other QMUL non pay | L42: 19 | M42: 31421 | N42: 41789.93 | AA42: 49 | AB42: 69114 | AC42: =+AB42*$L$3 -> 91921.62
L43: 18 | M43: 30685 | N43: 40811.05 | AA43: 48 | AB43: 67228 | AC43: =+AB43*$L$3 -> 89413.24
A44: Total QMUL Non Pay | C44: =SUM(C36:C43) -> 0 | D44: 0 | E44: 0 | F44: 0 | G44: 0 | H44: 0 | L44: 17 | M44: 29982 | N44: 39876.06
L45: 16 | M45: 29378 | N45: 39072.74
A46: Capital Expenditure | C46: 2024-25 | D46: 2025-26 | E46: 2026-27 | F46: 2027-28 | G46: 2028-29 | H46: 2029-30 | I46: Notes | L46: 15 | M46: 28773 | N46: 38268.09
L47: 14 | M47: 28528 | N47: 37942.24
A48: IT | C48: 0 | D48: 0 | E48: 0 | F48: 0 | G48: 0 | H48: 0 | L48: 13 | M48: 27979 | N48: 37212.07
A49: Estates | C49: 0 | D49: 0 | E49: 0 | F49: 0 | G49: 0 | H49: 0 | L49: 12 | M49: 27424 | N49: 36473.92
A50: Equipment | C50: 0 | D50: 0 | E50: 0 | F50: 0 | G50: 0 | H50: 0 | L50: 11 | M50: 26961 | N50: 35858.13
L51: 10 | M51: 26494 | N51: 35237.02
A52: Total Capital Expenditure | C52: =SUM(C47:C51) -> 0 | D52: 0 | E52: 0 | F52: 0 | G52: 0 | H52: 0 | L52: 9 | M52: 26108 | N52: 34723.64
L53: 8 | M53: 25823 | N53: 34344.59
A54: Savings & Strategic funding | C54: 2024-25 | D54: 2025-26 | E54: 2026-27 | F54: 2027-28 | G54: 2028-29 | H54: 2029-30 | I54: Notes | L54: 7 | M54: 25533 | N54: 33958.89
L55: 6 | M55: 0 | N55: 0
A56: QMUL Pay | C56: 0 | D56: =C56*(1+'General Assumptions'!C11) -> 0 | E56: =D56*(1+'General Assumptions'!D12) -> 0 | F56: =E56*(1+'General Assumptions'!E12) -> 0 | G56: =F56*(1+'General Assumptions'!F12) -> 0 | H56: =G56*(1+'General Assumptions'!G12) -> 0 | L56: 5 | M56: 0 | N56: 0
A57: QMUL Non Pay | C57: 0 | D57: =C57*(1+'General Assumptions'!C12) -> 0 | E57: =D57*(1+'General Assumptions'!D12) -> 0 | F57: =E57*(1+'General Assumptions'!E12) -> 0 | G57: =F57*(1+'General Assumptions'!F12) -> 0 | H57: =G57*(1+'General Assumptions'!G12) -> 0 | L57: 4 | M57: 0 | N57: 0
A58: Faculty Strategic funding | C58: 0 | D58: 0 | E58: 0 | F58: 0 | G58: 0 | H58: 0 | L58: Select Spinal Point | M58: 0 | N58: 0
A59: QMUL Strategic funding | C59: 0 | D59: 0 | E59: 0 | F59: 0 | G59: 0 | H59: 0 | L59: 3 | M59: 0 | N59: =+M59*$L$3 -> 0
L60: 2 | M60: 0 | N60: =+M60*$L$3 -> 0
A61: Total Savings & Strategic funding | C61: =SUM(C55:C60) -> 0 | D61: 0 | E61: 0 | F61: 0 | G61: 0 | H61: 0 | L61: 1 | M61: 0 | N61: =+M61*$L$3 -> 0
A63: QMUL existing pay resources utilised - For information only *
C65: 2022-23 | D65: 2023-24 | E65: 2024-25 | F65: 2025-26 | G65: 2026-27 | H65: 2027-28 | I65: Notes
A67: QMUL FTE
A68: Clinical Professor | C68: 0 | D68: =+C68 -> 0 | E68: =+D68 -> 0 | F68: =+E68 -> 0 | G68: =+E68 -> 0 | H68: =+F68 -> 0
A69: Clinical Reader/Senior Lecturer | C69: 0 | D69: 0 | E69: 0 | F69: 0 | G69: 0 | H69: 0
A70: Clinical Lecturer | C70: 0 | D70: 0 | E70: 0 | F70: 0 | G70: 0 | H70: 0
A71: Non-clinical professor | C71: 0 | D71: 0 | E71: 0 | F71: 0 | G71: 0 | H71: 0
A72: Reader / senior lecturer | C72: 0 | D72: 0 | E72: 0 | F72: 0 | G72: 0 | H72: 0
A73: Lecturer | C73: 0 | D73: 0 | E73: 0 | F73: 0 | G73: 0 | H73: 0
A74: Academic & professional support (within institute) | C74: 0 | D74: 0 | E74: 0 | F74: 0 | G74: 0 | H74: 0
A75: Teaching assistants | C75: 0 | D75: 0 | E75: 0 | F75: 0 | G75: 0 | H75: 0
A76: Other | C76: 0 | D76: 0 | E76: 0 | F76: 0 | G76: 0 | H76: 0
A78: Total existing QMUL FTE | C78: =SUM(C67:C77) -> 0 | D78: 0 | E78: 0 | F78: 0 | G78: 0 | H78: 0
A80: QMUL Pay | B80: Grade
A81: Clinical Professor | B81: Select Grade | C81: =+C68*$AE23 -> 0 | D81: =+D68*$AE23*(1+'General Assumptions'!$B$10) -> 0 | E81: =+E68*$AE23*(1+'General Assumptions'!$B$10)^2 -> 0 | F81: =+F68*$AE23*(1+'General Assumptions'!$B$10)^3 -> 0 | G81: =+G68*$AE23*(1+'General Assumptions'!$B$10)^4 -> 0 | H81: =+H68*$AE23*(1+'General Assumptions'!$B$10)^5 -> 0
A82: Clinical Reader/Senior Lecturer | B82: Select Grade | C82: =+C69*$W24 -> 0 | D82: =+D69*$W24*(1+'General Assumptions'!$B$10) -> 0 | E82: =+E69*$W24*(1+'General Assumptions'!$B$10)^2 -> 0 | F82: =+F69*$W24*(1+'General Assumptions'!$B$10)^3 -> 0 | G82: =+G69*$W24*(1+'General Assumptions'!$B$10)^4 -> 0 | H82: =+H69*$W24*(1+'General Assumptions'!$B$10)^5 -> 0
A83: Clinical Lecturer | B83: Select Grade | C83: =+C70*$W25 -> 0 | D83: =+D70*$W25*(1+'General Assumptions'!$B$10) -> 0 | E83: =+E70*$W25*(1+'General Assumptions'!$B$10)^2 -> 0 | F83: =+F70*$W25*(1+'General Assumptions'!$B$10)^3 -> 0 | G83: =+G70*$W25*(1+'General Assumptions'!$B$10)^4 -> 0 | H83: =+H70*$W25*(1+'General Assumptions'!$B$10)^5 -> 0
A84: Non-clinical professor | B84: Select Grade | C84: =+C71*$AE26 -> 0 | D84: =+D71*$AE26*(1+'General Assumptions'!$B$10) -> 0 | E84: =+E71*$AE26*(1+'General Assumptions'!$B$10)^2 -> 0 | F84: =+F71*$AE26*(1+'General Assumptions'!$B$10)^3 -> 0 | G84: =+G71*$AE26*(1+'General Assumptions'!$B$10)^4 -> 0 | H84: =+H71*$AE26*(1+'General Assumptions'!$B$10)^5 -> 0
A85: Reader / senior lecturer | B85: Select Grade | C85: =+C72*$W27 -> 0 | D85: =+D72*$W27*(1+'General Assumptions'!$B$10) -> 0 | E85: =+E72*$W27*(1+'General Assumptions'!$B$10)^2 -> 0 | F85: =+F72*$W27*(1+'General Assumptions'!$B$10)^3 -> 0 | G85: =+G72*$W27*(1+'General Assumptions'!$B$10)^4 -> 0 | H85: =+H72*$W27*(1+'General Assumptions'!$B$10)^5 -> 0
A86: Lecturer | B86: Select Grade | C86: =+C73*$W28 -> 0 | D86: =+D73*$W28*(1+'General Assumptions'!$B$10) -> 0 | E86: =+E73*$W28*(1+'General Assumptions'!$B$10)^2 -> 0 | F86: =+F73*$W28*(1+'General Assumptions'!$B$10)^3 -> 0 | G86: =+G73*$W28*(1+'General Assumptions'!$B$10)^4 -> 0 | H86: =+H73*$W28*(1+'General Assumptions'!$B$10)^5 -> 0
A87: Academic & professional support (within institute) | B87: Select Grade | C87: =+C74*$P29 -> 0 | D87: =+D74*$P29*(1+'General Assumptions'!$B$10) -> 0 | E87: =+E74*$P29*(1+'General Assumptions'!$B$10)^2 -> 0 | F87: =+F74*$P29*(1+'General Assumptions'!$B$10)^3 -> 0 | G87: =+G74*$P29*(1+'General Assumptions'!$B$10)^4 -> 0 | H87: =+H74*$P29*(1+'General Assumptions'!$B$10)^5 -> 0
A88: Teaching assistants | B88: Select Grade | C88: =+C75*$P30 -> 0 | D88: =+D75*$P30*(1+'General Assumptions'!$B$10) -> 0 | E88: =+E75*$P30*(1+'General Assumptions'!$B$10)^2 -> 0 | F88: =+F75*$P30*(1+'General Assumptions'!$B$10)^3 -> 0 | G88: =+G75*$P30*(1+'General Assumptions'!$B$10)^4 -> 0 | H88: =+H75*$P30*(1+'General Assumptions'!$B$10)^5 -> 0
A89: Other | B89: Select Grade | C89: =+C76*$P31 -> 0 | D89: =+D76*$P31*(1+'General Assumptions'!$B$10) -> 0 | E89: =+E76*$P31*(1+'General Assumptions'!$B$10)^2 -> 0 | F89: =+F76*$P31*(1+'General Assumptions'!$B$10)^3 -> 0 | G89: =+G76*$P31*(1+'General Assumptions'!$B$10)^4 -> 0 | H89: =+H76*$P31*(1+'General Assumptions'!$B$10)^5 -> 0
A91: Total existing QMUL Pay | C91: =SUM(C81:C90) -> 0 | D91: 0 | E91: 0 | F91: 0 | G91: 0 | H91: 0
A93: * Include pay costs of existing resources being utilised to deliver new programme / research initiative etc.

Sheet General Assumptions
A1: General Assumptions
A3: Inflation | B3: 2024-25 | C3: 2025-26 | D3: 2026-27 | E3: 2027-28 | F3: 2028-29 | G3: 2029-30 | H3: Notes
A5: Tuition fees - Home | B5: 0.02 | C5: 0.02 | D5: 0.02 | E5: 0.02 | F5: 0.02 | G5: 0.02
A6: Tuition fees - Overseas | B6: 0.05 | C6: 0.05 | D6: 0.05 | E6: 0.05 | F6: 0.05 | G6: 0.03
A7: Progression Y1 to Y2 | B7: =1-12.3% -> 0.877 | C7: =B7 -> 0.877 | D7: =C7 -> 0.877 | E7: 0.877 | F7: 0.877 | G7: 0.877
A8: Progression Y2 to Y3 | B8: =1-4.9% -> 0.951 | C8: =B8 -> 0.951 | D8: 0.951 | E8: 0.951 | F8: 0.951 | G8: 0.951
A9: Other income | B9: 0.02 | C9: 0.02 | D9: 0.02 | E9: 0.02 | F9: 0.02 | G9: 0.02
A10: Pay * | B10: 0.035 | C10: 0.035 | D10: 0.025 | E10: 0.025 | F10: 0.02 | G10: 0.02
A11: Compound pay inflation | B11: 1 | C11: =+B11*1+C10 -> 1.035 | D11: =+C11*1+D10 -> 1.06 | E11: 1.085 | F11: 1.105 | G11: 1.125
A12: Non pay | B12: 0.02 | C12: 0.02 | D12: 0.02 | E12: 0.02 | F12: 0.02 | G12: 0.02
A13: Overseas students recruited by agents - UG | B13: 0.5 | C13: 0.5 | D13: 0.5 | E13: 0.5 | F13: 0.5 | G13: 0.5
A14: Overseas students recruited by agents - PGT | B14: 0.5 | C14: 0.5 | D14: 0.5 | E14: 0.5 | F14: 0.5 | G14: 0.5
A15: Agents Commission | B15: 0.15 | C15: =B15 -> 0.15 | D15: =C15 -> 0.15 | E15: 0.15 | F15: 0.15 | G15: 0.15
A17: Funding body rate assumptions | B17: 2024-25 | C17: 2025-26 | D17: 2026-27 | E17: 2027-28 | F17: 2028-29 | G17: 2029-30 | H17: Notes
A19: OFS Price group A - UG rate | B19: 10000 | C19: =+B19 -> 10000 | D19: 10000 | E19: 10000 | F19: 10000 | G19: 10000
A20: OFS Price group B - UG rate | B20: 1500 | C20: 1500 | D20: 1500 | E20: 1500 | F20: 1500 | G20: 1500
A21: OFS Price group C1.1 - UG rate | B21: 250 | C21: 250 | D21: 250 | E21: 250 | F21: 250 | G21: 250
A22: OFS Price group C1.2 - UG rate | B22: 120 | C22: 120 | D22: 120 | E22: 120 | F22: 120 | G22: 120
A23: OFS Price group C2 - UG rate | B23: 0 | C23: 0 | D23: 0 | E23: 0 | F23: 0 | G23: 0
A24: OFS Price group D - UG rate | B24: 0 | C24: 0 | D24: 0 | E24: 0 | F24: 0 | G24: 0
A25: OFS Price group A - PGT rate | B25: 10000 | C25: =+B25 -> 10000 | D25: 10000 | E25: 10000 | F25: 10000 | G25: 10000
A26: OFS Price group B - PGT rate | B26: 1500 | C26: =+B26 -> 1500 | D26: 1500 | E26: 1500 | F26: 1500 | G26: 1500
A27: OFS Price group C1.1 - PGT rate | B27: 250 | C27: 250 | D27: 250 | E27: 250 | F27: 250 | G27: 250
A28: OFS Price group C1.2 - PGT rate | B28: 120 | C28: 120 | D28: 120 | E28: 120 | F28: 120 | G28: 120
A29: OFS Price group C2 - PGT rate | B29: 0 | C29: 0 | D29: 0 | E29: 0 | F29: 0 | G29: 0
A30: OFS Price group D - PGT rate | B30: 0 | C30: 0 | D30: 0 | E30: 0 | F30: 0 | G30: 0
A31: RDP funding rate | B31: 4870 | C31: =+B31 -> 4870 | D31: 4870 | E31: 4870 | F31: 4870 | G31: 4870
A32: QR on charitable income (Incl 12% LW) | B32: 0.19 | C32: 0.19 | D32: 0.19 | E32: 0.19 | F32: 0.19 | G32: 0.19
A34: Research mix | B34: 2024-25 | C34: 2025-26 | D34: 2026-27 | E34: 2027-28 | F34: 2028-29 | G34: 2029-30 | H34: Notes
A36: Pay | B36: 0.65 | C36: 0.62 | D36: 0.62 | E36: 0.62 | F36: 0.62 | G36: 0.62
A37: Non pay | B37: 0.35 | C37: 0.38 | D37: 0.38 | E37: 0.38 | F37: 0.38 | G37: 0.38
A39: Bursaries | B39: 2024-25 | C39: 2025-26 | D39: 2026-27 | E39: 2027-28 | F39: 2028-29 | G39: 2029-30
A41: Bursary % of total UG Home/EU income | B41: 0.08333333333 | C41: 0.08333333333 | D41: 0.08333333333 | E41: 0.08333333333 | F41: 0.08333333333 | G41: 0.08333333333
A43: * Payscales based on August 2023
